Cogmind - Beta 12 @@@ ROGUE MODE // 2023.10.31 @ 19:05:04 Player: monistgf Result: Self-destructed Performance ------------- Evolutions (4) 2000 Regions Visited (7) 1400 Robots Destroyed (69) 345 Value Destroyed (2484) 2484 Prototype IDs (1) 20 Alien Tech Used (0) 0 Bonus (213) 213 TOTAL SCORE: 6462 Bonus ------- Pacifist 200 High Alert Combat Kills 13 Cogmind --------- Core Integrity 289/850 Matter 15/300 Energy 100/100 System Corruption 20% Temperature Cool (21) Movement Core (1350) Ox26 Location -6/Factory Parts ------- > --- POWER (1) -------- (None) > --- PROPULSION (4) --- (None) > --- UTILITY (7) ------ Huge Storage Unit Improved Targeting Computer > --- WEAPON (3) ------- (None) > --- INVENTORY (25) --- Cargo Storage Unit High-capacity Matter Pod (0) Enhanced Optical Array Advanced Sensor Array Improved Terrain Scanner Improved Targeting Computer Transmission Jammer Heavy Assault Rifle Heavy Assault Cannon Missile Launcher Powered Hammer Peak State ------------ > --- POWER ------------ Light Fission Core > --- PROPULSION ------- Armored Huge Wheel Armored Huge Wheel > --- UTILITY ---------- Cargo Storage Unit Improved Targeting Computer Improved Targeting Computer Kinecellerator Hardened Heavy Armor Plating > --- WEAPON ----------- Minigun Gauss Rifle Gauss Cannon > --- INVENTORY -------- Deuterium Engine Armored Wheel Armored Wheel Armored Huge Wheel Armored Huge Wheel Armored Huge Wheel Improved Cooling System Huge Storage Unit High-capacity Matter Pod Advanced Sensor Array Improved Terrain Scanner Seismic Detector Improved Targeting Computer Transmission Jammer Improved Propulsion Shielding Hardened Heavy Armor Plating Minigun Minigun Heavy Assault Cannon Gauss Cannon Gauss Cannon Missile Launcher Powered Hammer [Rating: 59] Favorites ----------- Power Improved Deuterium Engine Engine Improved Deuterium Engine Power Core Light Fission Core Propulsion Armored Huge Wheel Treads Light Treads Leg Improved Titanium Leg Wheel Armored Huge Wheel Utility Improved Targeting Computer Device Seismic Detector Storage Cargo Storage Unit Processor Improved Targeting Computer Protection Improved Light Armor Plating Weapon Minigun Ballistic Gun Minigun Ballistic Cannon Gauss Cannon Launcher Missile Launcher Impact Weapon Great Maul Build | -11 -10 -9 -8 -7 -6 -6 -6 ------- Run | Jun Mat Mat Mat Fac Fac Was Fac Slots Evolved 8 | . . 2 2 2 2 . . Power . | . . . . . . . . Propulsion 2 | . . 1 . . 1 . . Utility 5 | . . 1 1 2 1 . . Weapon 1 | . . . 1 . . . . Parts Attached 108 | . 4 13 21 26 29 4 11 Power 6 | . . 1 1 2 2 . . Engine 5 | . . 1 1 2 1 . . Core 1 | . . . . . 1 . . Reactor . | . . . . . . . . Propulsion 20 | . 2 2 3 3 4 2 4 Treads 3 | . . 1 . 1 . . 1 Leg 3 | . . . . . . . 3 Wheel 14 | . 2 1 3 2 4 2 . Hover . | . . . . . . . . Flight . | . . . . . . . . Utility 42 | . 2 5 6 6 18 2 3 Device 22 | . 1 2 3 2 10 2 2 Storage 4 | . 1 1 1 . . . 1 Processor 2 | . . . . 1 1 . . Hackware . | . . . . . . . . Protection 14 | . . 2 2 3 7 . . Artifact . | . . . . . . . . Weapon 40 | . . 5 11 15 5 . 4 Energy Gun . | . . . . . . . . Energy Cannon . | . . . . . . . . Ballistic Gun 29 | . . 5 10 8 3 . 3 Ballistic Cannon 5 | . . . . 3 2 . . Launcher 1 | . . . . 1 . . . Special Weapon . | . . . . . . . . Impact Weapon 5 | . . . 1 3 . . 1 Slashing Weapon . | . . . . . . . . Piercing Weapon . | . . . . . . . . Special Melee Weapon . | . . . . . . . . Unidentified Prototypes 1 | . . 1 . . . . . Parts Lost 36 | . . 2 . 4 15 3 12 Power 2 | . . . . . 2 . . Propulsion 13 | . . . . 2 3 2 6 Utility 11 | . . 2 . . 4 1 4 Weapon 10 | . . . . 2 6 . 2 Highest Loss Streak 11 | . . 1 . 3 11 2 8 To Critical Strikes 2 | . . . . . 1 1 . Average Slot Usage (%) 79 | . 88 98 82 83 76 50 53 Engine 5 | . 14 11 9 7 1 . . Wheel 15 | . 24 24 18 14 12 12 10 Device 11 | . 2 9 10 14 7 13 11 Storage 7 | . 15 11 9 7 6 6 6 Processor 6 | . . . . 6 11 13 13 Protection 7 | . . 10 8 7 11 4 . Ballistic Gun 17 | . 28 22 26 18 12 . 2 Ballistic Cannon 2 | . . . . 3 6 . . Naked Turns . | . . . . . . . . Heaviest Build 188 | 14 20 33 163 174 188 145 92 Greatest Support 56 | 20 26 36 40 40 56 56 40 Greatest Overweight (x) 7 | . . 1 4 6 3 5 7 Average Overweight (x) 2 | . . . 3 4 2 2 2 Largest Inventory Capacity 30 | . 10 10 30 30 30 30 30 Average Capacity 26 | . 9 10 26 30 30 30 25 Most Carried 30 | . 10 10 30 30 30 18 21 Average Carried 25 | . 8 9 24 29 28 17 18 Final Capacity 30 | 8 10 10 30 30 30 30 25 Final Carried 30 | 6 9 10 30 30 18 18 13 Class Distribution -------------------- 48% | Hauler-Gunner 19% | Hauler-Tank 16% | Mutant 10% | Hauler-Mutant Dominant Class ---------------- Mutant | -10/Materials Mutant | -9/Materials Hauler-Tank | -8/Materials Hauler-Gunner | -7/Factory Hauler-Gunner | -6/Factory Hauler-Mutant | -6/Waste Mutant | -6/Factory Resources | -11 -10 -9 -8 -7 -6 -6 -6 ----------- Run | Jun Mat Mat Mat Fac Fac Was Fac Matter Collected 2996 | 200 . 429 624 749 985 . 9 Remotely . | . . . . . . . . Salvage Created 2804 | . . 603 514 725 953 . 9 Parts 173 | . . 47 35 46 45 . . Haulers Intercepted 1 | . . . 1 . . . . Recyclers Shooed 3 | . . . . . 3 . . Parts Field Recycled . | . . . . . . . . Retrieved Matter . | . . . . . . . . Parts Self-Destructed . | . . . . . . . . Prevented . | . . . . . . . . Kills | -11 -10 -9 -8 -7 -6 -6 -6 ------- Run | Jun Mat Mat Mat Fac Fac Was Fac Combat Hostiles Destroyed 48 | . . 14 8 13 13 . . Guns 35 | . . 14 8 9 4 . . Cannons 11 | . . . . 2 9 . . AOE 2 | . . . . 2 . . . Classes Destroyed 13 | . . 6 1 4 2 . . Worker 6 | . . 1 1 1 3 . . Builder 4 | . . . . . 4 . . Tunneler 1 | . . 1 . . . . . Hauler 1 | . . . 1 . . . . Recycler 4 | . . . . 1 3 . . Operator 2 | . . . . 1 . . 1 Watcher 3 | . . 1 1 . 1 . . Swarmer 3 | . . 3 . . . . . Grunt 20 | . . 8 3 7 2 . . Sentry 13 | . . 3 5 3 2 . . Hunter 6 | . . . . . 6 . . Programmer 5 | . . . . 2 3 . . Heavy 1 | . . . . 1 . . . Best Kill Streak 6 | . . 4 2 5 6 . 1 Combat Bots Only 4 | . . 2 2 4 2 . . Max Kills in Single Turn 5 | . . 1 1 2 5 . 1 Gunslinging . | . . . . . . . . Exploded 1 | . . . . 1 . . . Melee . | . . . . . . . . Uniques/NPCs Destroyed . | . . . . . . . . Combat | -11 -10 -9 -8 -7 -6 -6 -6 -------- Run | Jun Mat Mat Mat Fac Fac Was Fac Damage Taken 7931 | . . 545 431 1336 4216 175 1228 Core 758 | . . 51 15 131 309 45 207 Absorbed by Shields . | . . . . . . . . Redirected to Shielding 238 | . . . . 29 188 21 . Core Remaining (%) 93 | 100 100 87 97 81 . . . Volleys Fired 198 | . . 44 30 51 70 . 3 Largest 3 | . . 2 3 3 3 . 2 Hottest 121 | . . 46 75 104 121 . 50 Shots Fired 489 | . . 88 90 121 186 . 4 Gun 386 | . . 88 90 93 111 . 4 Cannon 101 | . . . . 26 75 . . Launcher 2 | . . . . 2 . . . Special . | . . . . . . . . Kinetic 487 | . . 88 90 119 186 . 4 Thermal . | . . . . . . . . Explosive 2 | . . . . 2 . . . Electromagnetic . | . . . . . . . . Robot Hit Streak 22 | . . 22 21 16 15 . 12 Robot Miss Streak 5 | . . 5 3 3 4 . 1 Penetration Max 1 | . . . . 1 1 . . Secondary Targets 1 | . . 1 . . . . . Max Gunslinging Chain 1 | . . 1 . . . . . Shots Hit Robots 321 | . . 60 53 75 130 . 3 Core Hits 139 | . . 26 23 33 55 . 2 Critical Kills 1 | . . 1 . . . . . Critical Parts Destroyed 8 | . . 1 1 3 3 . . Critical Strikes 20 | . . 2 1 4 13 . . Destroy 9 | . . 2 1 3 3 . . Blast 11 | . . . . 1 10 . . Melee Attacks 11 | . . . 3 5 . . 3 Impact 11 | . . . 3 5 . . 3 Slashing . | . . . . . . . . Piercing . | . . . . . . . . Sneak Attacks 1 | . . . . . . . 1 Combat Hostiles . | . . . . . . . . Follow-up Attacks . | . . . . . . . . Damage Inflicted 7342 | . . 946 888 1766 3599 . 143 Guns 4668 | . . 946 888 1300 1501 . 33 Cannons 1886 | . . . . 228 1658 . . Explosions 599 | . . . . 215 384 . . Melee 91 | . . . . . . . 91 Ramming 98 | . . . . 23 56 . 19 Kinetic 6554 | . . 946 888 1528 3159 . 33 Thermal 384 | . . . . . 384 . . Explosive 215 | . . . . 215 . . . Electromagnetic . | . . . . . . . . Impact 91 | . . . . . . . 91 Slashing . | . . . . . . . . Piercing . | . . . . . . . . Highest Corruption 20 | . . . . 4 2 20 20 Average Corruption 7 | . . . . 4 1 11 20 Corruption Purged . | . . . . . . . . Corruption Blocked 12 | . . . . 12 . . . Effects 68 | . . . . 26 8 11 23 Message Errors 15 | . . . . 6 . 2 7 Matter Fused 17 | . . . . 8 2 1 6 Heat Flow Errors 8 | . . . . 4 . 2 2 Energy Discharges 9 | . . . . 5 . 4 . Parts Rejected 2 | . . . . 1 . . 1 Parts Fused 1 | . . . . . . . 1 Data Loss (minor) 8 | . . . . 1 4 . 3 Data Loss (major) 2 | . . . . . . . 2 Misfires 1 | . . . . 1 . . . Alerts 2 | . . . . . 1 1 . Misdirections 2 | . . . . . . 1 1 Weapon Failures 1 | . . . . . 1 . . Overload Shots . | . . . . . . . . Overflow Damage 201 | . . . . 10 130 . 61 Projectiles 19 | . . . . . 19 . . Explosions 95 | . . . . 10 85 . . Melee 87 | . . . . . 26 . 61 Knockbacks 20 | . . . . 1 18 . 1 Impact 2 | . . . . . 1 . 1 Kinetic 16 | . . . . 1 15 . . Secondary 2 | . . . . . 2 . . Self-Inflicted Damage 48 | . . . . 11 28 . 9 Shots . | . . . . . . . . Rammed 5 | . . . . 1 1 . 3 Targets Rammed 5 | . . . . 1 1 . 3 Kicked . | . . . . . . . . Crushed . | . . . . . . . . Highest Temperature 290 | . . 5 185 267 290 242 201 Average Temperature 80 | . . 2 53 75 102 106 84 Received Heat Transfer 1686 | . . 168 243 294 354 . 627 Effects 2 | . . . . . 2 . . Energy Bleed 1 | . . . . . 1 . . Interference 1 | . . . . . 1 . . Siege Activations . | . . . . . . . . Robots Corrupted . | . . . . . . . . Combat Hostiles . | . . . . . . . . Parts Fried 1 | . . . . . . . 1 Impact Corruptions 6 | . . . . . 2 . 4 Robots Melted . | . . . . . . . . Combat Hostiles . | . . . . . . . . Parts Melted . | . . . . . . . . Heat Transferred 250 | . . . . . 250 . . Parts Sabotaged . | . . . . . . . . Parts Stolen . | . . . . . . . . Parts Stripped . | . . . . . . . . Power Chain Reactions . | . . . . . . . . Missiles Intercepted . | . . . . . . . . Alert | -11 -10 -9 -8 -7 -6 -6 -6 ------- Run | Jun Mat Mat Mat Fac Fac Was Fac Peak Influence 433 | . . 433 233 222 294 70 55 Initial 121 | . . . 121 85 68 70 28 Average 93 | . . 213 145 53 112 60 29 Maximum Alert Level 2 | . . 2 1 1 1 . . Low Security (%) 86 | . 100 44 77 94 85 100 100 Level 1 13 | . . 48 22 5 14 . . Level 2 . | . . 7 . . . . . Level 3 . | . . . . . . . . Level 4 . | . . . . . . . . Level 5 . | . . . . . . . . High Security . | . . . . . . . . Max Security . | . . . . . . . . Squads Dispatched 18 | . . 4 2 7 4 . 1 Investigation 2 | . . 1 . 1 . . . Extermination 5 | . . . . 3 2 . . Reinforcement 11 | . . 3 2 3 2 . 1 Assault . | . . . . . . . . Garrison . | . . . . . . . . Intercept . | . . . . . . . . Searches Triggered . | . . . . . . . . Construction Impeded 1 | . . . . . 1 . . Haulers Reinforced . | . . . . . . . . Active Scanning Responses . | . . . . . . . . Cargo Convoy Interrupts 1 | . . . . 1 . . . Stealth | -11 -10 -9 -8 -7 -6 -6 -6 --------- Run | Jun Mat Mat Mat Fac Fac Was Fac Distress Signals 6 | . . 2 2 1 1 . . Communications Jammed . | . . . . . . . . Distress Signals . | . . . . . . . . Times Spotted 97 | . . 19 22 17 24 6 9 Peak Tracking Total 8 | . . 4 6 4 8 6 8 Tactical Retreats 5 | . . 1 1 . 2 . 1 Traps | -11 -10 -9 -8 -7 -6 -6 -6 ------- Run | Jun Mat Mat Mat Fac Fac Was Fac Traps Triggered 3 | . . 1 . 1 1 . . Indirectly . | . . . . . . . . Trap Hack Attempts . | . . . . . . . . Triggered . | . . . . . . . . Disarmed . | . . . . . . . . Reprogrammed . | . . . . . . . . Reused . | . . . . . . . . Traps Extracted . | . . . . . . . . Installed . | . . . . . . . . Triggered 4 | . . . . 4 . . . Machines | -11 -10 -9 -8 -7 -6 -6 -6 ---------- Run | Jun Mat Mat Mat Fac Fac Was Fac Machines Disabled 4 | . . 1 1 . 2 . . Max in Single Turn 1 | . . 1 1 . 1 . . Machines Repaired . | . . . . . . . . Machines Sabotaged . | . . . . . . . . Overloaded Fab Kills . | . . . . . . . . Hacking | -11 -10 -9 -8 -7 -6 -6 -6 --------- Run | Jun Mat Mat Mat Fac Fac Was Fac Machines Accessed 17 | . . 1 3 8 5 . . Terminals 14 | . . 1 2 8 3 . . Fabricators 1 | . . . . . 1 . . Repair Stations . | . . . . . . . . Recycling Units 1 | . . . . . 1 . . Scanalyzers 1 | . . . 1 . . . . Garrison Access . | . . . . . . . . Total Hacks 43 | . . 3 6 19 15 . . Successful 16 | . . . 3 4 9 . . Failed 27 | . . 3 3 15 6 . . Catastrophic 11 | . . . 1 8 2 . . Database Lockouts . | . . . . . . . . Manual 21 | . . 1 4 11 5 . . Terminals 34 | . . 3 4 19 8 . . Fabricators 2 | . . . . . 2 . . Repair Stations . | . . . . . . . . Recycling Units 5 | . . . . . 5 . . Scanalyzers 2 | . . . 2 . . . . Garrison Access . | . . . . . . . . Terminal Hacks 8 | . . . 1 4 3 . . Record 1 | . . . . 1 . . . Level Access Points 1 | . . . . 1 . . . Branch Access Points 1 | . . . 1 . . . . Alert Level 3 | . . . . 2 1 . . Locate Traps 1 | . . . . . 1 . . Recall Reinforcements 1 | . . . . . 1 . . Fabricator Hacks 1 | . . . . . 1 . . Network Status 1 | . . . . . 1 . . Repair Station Hacks . | . . . . . . . . Recycling Unit Hacks 3 | . . . . . 3 . . Process 1 | . . . . . 1 . . Retrieve Matter 2 | . . . . . 2 . . Scanalyzer 2 | . . . 2 . . . . Insert Component 1 | . . . 1 . . . . Analyze 1 | . . . 1 . . . . Garrison Access Hacks . | . . . . . . . . Unauthorized Hacks 2 | . . . . . 2 . . Terminals 2 | . . . . . 2 . . Botnet 1 | . . . . . 1 . . Operators 1 | . . . . . 1 . . Fabricators . | . . . . . . . . Repair Stations . | . . . . . . . . Recycling Units . | . . . . . . . . Scanalyzers . | . . . . . . . . Garrison Access . | . . . . . . . . Data Cores Recovered 1 | . . . . 1 . . . Used 1 | . . . . 1 . . . Hacking Detections 16 | . . 1 3 8 4 . . Full Trace Events 1 | . . . 1 . . . . Feedback Events . | . . . . . . . . Feedback Blocked . | . . . . . . . . Robot Schematics Acquired . | . . . . . . . . Robots Built . | . . . . . . . . Authchips . | . . . . . . . . Time . | . . . . . . . . Total Robot Build Rating . | . . . . . . . . Part Schematics Acquired 1 | . . . 1 . . . . Parts Built . | . . . . . . . . Authchips . | . . . . . . . . Time . | . . . . . . . . Total Part Build Rating . | . . . . . . . . Parts Repaired . | . . . . . . . . Time . | . . . . . . . . Parts Recycled . | . . . . . . . . Recycled Matter 196 | . . . . . 196 . . Retrieved Matter 226 | . . . . . 226 . . Retrieved Components . | . . . . . . . . Parts Scanalyzed 1 | . . . 1 . . . . Part Schematics Acquired 1 | . . . 1 . . . . Parts Damaged . | . . . . . . . . Bothacking | -11 -10 -9 -8 -7 -6 -6 -6 ------------ Run | Jun Mat Mat Mat Fac Fac Was Fac Used RIF Installer . | . . . . . . . . Robots Hacked . | . . . . . . . . Non-combat . | . . . . . . . . Combat . | . . . . . . . . Robot Hacks Applied . | . . . . . . . . Relay Couplers Released . | . . . . . . . . Fabnet Peak Effective % . | . . . . . . . . Robots Rewired . | . . . . . . . . Allies Hacked . | . . . . . . . . Hacks Repelled . | . . . . . . . . Allies | -11 -10 -9 -8 -7 -6 -6 -6 -------- Run | Jun Mat Mat Mat Fac Fac Was Fac Total Allies . | . . . . . . . . Largest Group . | . . . . . . . . Highest-Rated Group . | . . . . . . . . Highest-Rated Ally . | . . . . . . . . Total Orders . | . . . . . . . . Ally Attacks . | . . . . . . . . Total Damage . | . . . . . . . . Kills . | . . . . . . . . Allies Corrupted . | . . . . . . . . Allies Melted . | . . . . . . . . Intel | -11 -10 -9 -8 -7 -6 -6 -6 ------- Run | Jun Mat Mat Mat Fac Fac Was Fac Robot Analysis Total . | . . . . . . . . Derelict Logs Recovered . | . . . . . . . . Drone Launches . | . . . . . . . . Drone Recoveries . | . . . . . . . . Exploration | -11 -10 -9 -8 -7 -6 -6 -6 ------------- Run | Jun Mat Mat Mat Fac Fac Was Fac Turns Passed 5887 | . 127 469 1119 2213 1243 268 448 Spaces Moved 3110 | 1 122 278 633 1152 496 157 271 Core . | . . . . . . . . Treads . | . . . . . . . . Legs 38 | 1 13 . . . . . 24 Wheels 3072 | . 109 278 633 1152 496 157 247 Hover . | . . . . . . . . Flight . | . . . . . . . . Fastest Speed 86 | 120 90 86 86 155 130 130 125 Average Speed 138 | 120 93 99 136 155 135 136 137 Slowest Speed 340 | 120 120 105 155 190 145 175 340 Overloaded Moves . | . . . . . . . . Propulsion Burnouts . | . . . . . . . . Robots Hopped . | . . . . . . . . Cave-ins Triggered 1 | . . . . 1 . . . Exploration Rate (%) 30 | 1 32 23 43 34 11 92 10 Regions Visited 7 Branch Regions . Pre-discovered Areas . | . . . . . . . . Known Exits Taken 1 | . . . . 1 . . . Unknown Exits Taken 4 | 1 1 1 1 . . . . Scrap Searched . | . . . . . . . . Spaces Dug 22 | . . . 3 17 . . 2 Terrain Destroyed 87 | . . . 3 44 38 . 2 Melee 10 | . . . 3 5 . . 2 Projectile 38 | . . . . 21 17 . . AOE 39 | . . . . 18 21 . . Terrain Rammed . | . . . . . . . . Walls Destroyed . | . . . . . . . . Machines Disabled . | . . . . . . . . Actions | -11 -10 -9 -8 -7 -6 -6 -6 --------- Run | Jun Mat Mat Mat Fac Fac Was Fac Total 4334 | . 134 392 853 1484 925 210 336 Wait 724 | . 2 26 92 206 308 49 41 Move 3103 | . 121 277 632 1150 496 156 271 Hop . | . . . . . . . . Pick Up 86 | . 4 12 38 19 10 1 2 Fast Attach 20 | . 2 5 5 5 1 1 1 Attach 35 | . . 3 3 6 12 2 9 Detach 9 | . 1 3 2 1 . . 2 Swap 53 | . 2 5 13 15 16 1 1 Drop 87 | . 2 17 35 24 9 . . Fire 198 | . . 44 30 51 70 . 3 Melee 11 | . . . 3 5 . . 3 Ram 5 | . . . . 1 1 . 3 Kick . | . . . . . . . . Crush . | . . . . . . . . Escape Stasis 1 | . . . . 1 . . . Rewire 2 | . . . . . 2 . . Trap . | . . . . . . . . Miscellaneous . | . . . . . . . . Route ------- -11/Junkyard -10/Materials -9/Materials -8/Materials -7/Factory (discovered 4 exits: *Fac x4) -6/Factory -6/Waste -6/Factory (discovered 1 exit: [*Fac]) History --------- Turn | Location | Event 1 | -11/Junkyard | Discovered new exit (range 0) 1 | -11/Junkyard | Entered Materials 114 | -10/Materials | Discovered new exit (range 16) 128 | -10/Materials | Entered another Materials area 128 | -9/Materials | Evolved 2 slots: Propulsion x1, Utility x1 319 | -9/Materials | Build established: Mutant 462 | -9/Materials | Discovered new exit (range 13) 597 | -9/Materials | Entered another Materials area 597 | -8/Materials | Evolved 2 slots: Utility x1, Weapon x1 1114 | -8/Materials | Build established: Hauler-Tank 1679 | -8/Materials | Discovered new exit (range 15) 1716 | -8/Materials | Entered Factory 1716 | -7/Factory | Evolved 2 slots: Utility x2 2036 | -7/Factory | Build established: Hauler-Gunner 2321 | -7/Factory | Discovered new exit (range 4) 2621 | -7/Factory | Cargo convoy interrupted 2883 | -7/Factory | Crushed by falling debris 3763 | -7/Factory | Identified exit to Factory 3919 | -7/Factory | Lost 3 parts (1n2w) 3929 | -7/Factory | Entered another Factory area 3929 | -6/Factory | Evolved 2 slots: Propulsion x1, Utility x1 5138 | -6/Factory | Lost 11 parts (2p3n3u3w) 5172 | -6/Factory | Sucked down chute 5172 | -6/Factory | Entered Waste 5187 | -6/Waste | EMP discharged 5273 | -6/Waste | Spotted C-40 Crusher 5273 | -6/Waste | Spotted C-40 Crusher 5277 | -6/Waste | Spotted C-40 Crusher 5281 | -6/Waste | Spotted C-40 Crusher 5284 | -6/Waste | Spotted C-40 Crusher 5287 | -6/Waste | EMP discharged 5287 | -6/Waste | System corruption reached 10% 5322 | -6/Waste | Build established: Hauler-Mutant 5348 | -6/Waste | Spotted C-40 Crusher 5369 | -6/Waste | Crushed by Compactor (1 part destroyed) 5387 | -6/Waste | EMP discharged 5415 | -6/Waste | Discovered new exit (range 10) 5440 | -6/Waste | Entered Factory 5734 | -6/Factory | Discovered new exit (range 7) 5744 | -6/Factory | Build established: Mutant 5799 | -6/Factory | Core integrity fell below 50% 5858 | -6/Factory | Lost 8 parts (4n3u1w) 5888 | -6/Factory | Self-destructed Last Messages --------------- 05793_ G-50 Soldier unfolds itself. 05797_ Seismic Detector destroyed. 05797_ Imp. Weapon Cycler destroyed. 05797_ Arm. Huge Wheel destroyed. 05801_ Critical hit (Burn: +37). 05804_ Imp. Titanium Leg destroyed. 05809_ Critical hit (Burn: +37). 05810_ System corrupted: Imp. Cooling System rejected. 05811_ Broken Imp. Heavy Siege Treads destroyed. 05827_ Arm. Wheel destroyed. 05829_ System corrupted: Heat flow error (+177). 05844_ System corrupted: Heat flow error (+238). 05863_ M-28 Smith repairs G-50 Soldier. 05865_ Minigun destroyed. 05880_ Critical hit (Burn: +37). 05883_ System corrupted: Matter fused (-5). 05884_ Flexi-carbon Leg destroyed. 05886_ Imp. Titanium Leg destroyed. 05886_ Critical hit (Burn: +37). 05888_ Imp. Targeting Computer destroyed. Map ----- +----------------------------------------------------+ | ?????????????????????????????????????????????????? | | ?????????????????????????????????????????????????? | | ?????????????????????????????????????????????????? | | ?????????????????????????????????????????????????? | | ?????????????????????????????????????????????????? | | ?????????????????????????????????????????????????? | | ?????????????????????????????????????????????????? | | ?????????????????????????????????????????????????? | | ?????????????????????????????????????????????????? | | ?????????????????????????????????????????????????? | | ?????????????????????????????????????????????????? | | ???????????????????????????# ##########??????????? | | ????????????????????????????? ""####???????? | | ????????????????????????????????????# #???????? | | ????????????????????????????????????# #???????? | | ????# ???#H????????????????????????# ######### | | ????# ??# ????????????????????????# ! + | | ????# ?# ????????????????????????# # ####### | | ????# ?# ???????????????????????# # # ] | | ????# ?[ ??????????????????????# # # | | ????# ###+###########+#+###????####### # """ | | ????# k u ##### ## # """ | | ????# g + """ | | ????# gwg w < #### | | ????# g g #??##+#### | | ????# k m g @ t#???# ????# #??? | | ????# ###############???##%" #????# #??? | | ????# #??????????????????#" #????# #??? | | ????# #??????????????????# #????# #??? | | ????# ###############????# #????# #### | | ????# / #??### ###??# | | ????# ## """"""" #??# #??# #### | | ????# ## """"""" #??# #### #??? | | ????# ## """"""" #### #??? | | ????# ## """"""" / #### | | ??? # #### | | ?? # """"""" #??# ##+###### | | ??? # """"""" #??# ## | | ??? # """"""" #?#####+#####" | | ???? + """"""" #?# #"" | | ???? # ?? #?# """ """ #"" " | | ????? # ?? ? #?# """ """ #"" " | | ???????## #######????##??# """ """ #"" " | | ????????? ? ???????????????# "" "" #"T " | | ????????????? ???????????????# "" "" #?? | | ????????????????????????????????# ???? " | | ????????????????????????????????# ?? ???? " | | ????????????????????????????????????######??? " | | ????????????????????????????????????????????? " | | ?????????????????????????????????????????????? | +----------------------------------------------------+ Best States ------------- Heat Dissipation 64 Energy Generation 18 Energy Capacity 290 Matter Stores 300 Matter Capacity 300 Sight Range 16 Terrain Scan Range 16 Terrain Scan Density 10 Armor Coverage 600 Resistance: TH 10 Propulsion Shielding 66 Utility Shielding 66 Evasion (%) 55 Targeting Accuracy 12 Kinecelleration 30 Item Schematics ----------------- Arm. Huge Wheel | -8/Materials | Scanalyzed Robot Schematics ------------------ None Fabricated ------------ Nothing Alien Tech Used ----------------- None Achievements -------------- None Challenges ------------ None Game ------ Seed SmallDeliverySpecial Manual? 0 Play Time 00:54:53 Cumulative 148.6 hours Start 2023.10.31 @ 18:09:54 End 2023.10.31 @ 19:05:04 Sessions 1 Manual Loads 0 Difficulty Rogue Special Mode None Game No. 85 Rogue 85 Adventurer 0 Explorer 0 Win Type - Total 0 Types 0/0/0/0/0/0/0/0/0 Lore% 32 Gallery% 62 Achievement% 47 Wizard Run 0 Options --------- ASCII 0 Keyboard 1 Movement Numpad Keybinds 0 Fullscreen 1 Font 24/Smallcaps Map View 76x50 Tactical HUD 1 Map Filters NONE Filters NONE Steam 1 RUN: c0663868-28ea-4425-8718-93c3797f0f25